fUSD/lending_fUSD_20260414
["ID","MTS","AMOUNT","RATE_DAILY","PERIOD"]
[420464598,1776108648782,-178.873755,0.00013895,2]
[420464599,1776108648797,-178.873755,0.00013895,2]
[420464600,1776108648806,-178.873755,0.00013895,2]
[420464601,1776108648826,-178.873755,0.00013895,2]
[420464602,1776108648841,-500.0,0.00013895,2]
[420464603,1776108648852,-578.20924308,0.00013899,2]
[420464604,1776108648868,-1428.38747117,0.00013899,2]
[420464605,1776108648888,-500.0,0.00013899,2]
[420464606,1776108648899,-209.40437684,0.00013899,2]
[420464607,1776108648915,-721.12765535,0.00013899,2]
[420464608,1776108648932,-200.0,0.00013899,2]
[420464609,1776108648942,-9552.16786547,0.00013899,2]
[420464610,1776108648952,-151.0,0.00013899,2]
[420464611,1776108648967,-743.50770149,0.00013899,2]
[420464612,1776108648981,-500.0,0.00013899,2]
[420464613,1776108648991,-500.0,0.00013899,2]
[420464614,1776108649003,-10000.0,0.00013899,2]
[420464615,1776108649020,-500.0,0.00013899,2]
[420464616,1776108649031,-10000.0,0.00013899,2]
[420464617,1776108649040,-500.0,0.00013899,2]
[420464618,1776108649053,-5470.6730421,0.00013899,2]
[420464619,1776108649070,-500.0,0.00013899,2]
[420464620,1776108649080,-500.0,0.00013899,2]
[420464621,1776108649090,-500.0,0.00013899,2]
[420464622,1776108649114,-500.0,0.00013899,2]
[420464623,1776108649125,-220.84838946,0.00013899,2]
[420464624,1776108649138,-235.75327194,0.00013899,2]
[420464625,1776108649153,-313.0,0.00013899,2]
[420464626,1776108649167,-500.0,0.00013899,2]
[420464627,1776108649177,-244.476143,0.00013899,2]
[420464628,1776108649194,-500.0,0.00013899,2]
[420464629,1776108649212,-253.52176029,0.00013899,2]
[420464630,1776108649225,-500.0,0.00013899,2]
[420464631,1776108649243,-174.61919141,0.00013899,2]
[420464632,1776108649263,-262.90206542,0.00013899,2]
[420464633,1776108649294,-272.62944185,0.00013899,2]
[420464634,1776108649315,-282.71673119,0.00013899,2]
[420464635,1776108649363,-293.17725025,0.00013899,2]
[420464636,1776108649399,-304.02480851,0.00013899,2]
[420464637,1776108649418,-279.9045709,0.00013899,2]
[420464638,1776108649447,-315.27372642,0.00013899,2]
[420464639,1776108649458,-326.9388543,0.00013899,2]
[420464640,1776108649487,-438.58594683,0.00013899,2]
[420464641,1776108649498,-1100.0,0.000139,5]
[420464642,1776108649510,-168.23,0.0001392,2]
[420464643,1776108649539,-378.50628881,0.00013942,2]
[420464644,1776108649550,-736.08679361,0.00013942,2]
[420464645,1776108649585,-809.99935077,0.00013942,2]
[420464646,1776108649601,-500.0,0.00013945,2]
[420464647,1776108649626,-500.0,0.00013954,2]
[420464648,1776108649638,-1766.44374432,0.00013954,2]
[420464649,1776108649658,-151.0,0.00013954,2]
[420464650,1776108649673,-500.0,0.00013973,2]
[420464651,1776108649689,-402.43506709,0.00013973,2]
[420464652,1776108649699,-316.93981019,0.00013973,2]
[420464653,1776108649714,-500.0,0.00013973,2]
[420464654,1776108649726,-500.0,0.00013973,2]
[420464655,1776108649740,-500.0,0.00013973,2]
[420464656,1776108649750,-500.39923544,0.00013973,2]
[420464657,1776108649762,-500.0,0.00013973,2]
[420464658,1776108649773,-500.0,0.00013973,2]
[420464659,1776108649783,-500.0,0.00013973,2]
[420464660,1776108649794,-500.0,0.00013973,2]
[420464661,1776108649805,-500.0,0.00013973,2]
[420464662,1776108649816,-500.0,0.00013973,2]
[420464663,1776108649826,-500.0,0.00013973,2]
[420464664,1776108649835,-500.0,0.00013973,2]
[420464665,1776108649845,-166.66,0.00013973,2]
[420464666,1776108649854,-152.65860974,0.00013984,2]
[420464667,1776108649864,-205.11034035,0.00013984,2]
[420464668,1776108649874,-239.69405324,0.00013984,2]
[420464669,1776108649884,-189.51147179,0.00013984,2]
[420464670,1776108649894,-548.68213289,0.00013984,2]
[420464671,1776108649904,-235.44397655,0.00013984,2]
[420464672,1776108649913,-1229.94000725,0.00013984,2]
[420464673,1776108649923,-270.03540274,0.00013984,2]
[420464674,1776108649934,-225.04344993,0.00013984,2]
[420464675,1776108649944,-847.47660808,0.00013984,2]
[420464676,1776108649954,-229.41986362,0.00013984,2]
[420464677,1776108649963,-154.11275298,0.00013984,2]
[420464678,1776108649974,-331.94163905,0.00013984,2]
[420464679,1776108649983,-210.68361755,0.00013984,2]
[420464680,1776108649997,-500.0,0.00013995,2]
[420464681,1776108650016,-500.0,0.00013999,2]
[420464682,1776108650031,-666.0,0.00013999,2]
[420464683,1776108650042,-500.0,0.00013999,2]
[420464684,1776108650054,-500.0,0.00013999,2]
[420464685,1776108650067,-500.0,0.00013999,2]
[420464686,1776108650079,-500.0,0.00013999,2]
[420464687,1776108650090,-500.0,0.00013999,2]
[420464688,1776108650108,-500.0,0.00013999,2]
[420464689,1776108650121,-713.48685204,0.00013999,2]
[420464690,1776108650130,-525.09,0.00013999,2]
[420464691,1776108650176,-525.09,0.00013999,2]
[420464692,1776108650202,-525.09,0.00013999,2]
[420464693,1776108650216,-525.09,0.00013999,2]
[420464694,1776108650246,-525.09,0.00013999,2]
[420464695,1776108650261,-525.09,0.00013999,2]
[420464696,1776108650281,-170.501867,0.00014,2]
[420464697,1776108650295,-170.501867,0.00014,2]
[420464698,1776108650314,-170.501867,0.00014,2]
[420464699,1776108650329,-170.501867,0.00014,2]
[420464700,1776108650345,-1334.205194,0.00014,2]
[420464701,1776108650371,-1334.205194,0.00014,2]
[420464702,1776108650387,-1334.205194,0.00014,2]
[420464703,1776108650407,-1334.205194,0.00014,2]
[420464704,1776108650428,-500.0,0.00014009,2]
[420464705,1776108650453,-151.0,0.00014009,2]
[420464706,1776108650475,-218.89620931,0.00014029,2]
[420464707,1776108650492,-9783.24786407,0.00014033,2]
[420464708,1776108650509,-500.0,0.00014061,2]
[420464709,1776108650524,-500.0,0.00014064,2]
[420464710,1776108650541,-151.0,0.00014064,2]
[420464711,1776108650554,-166.66,0.0001411,2]
[420464712,1776108650570,-525.09,0.0001411,2]
[420464713,1776108650585,-500.0,0.00014119,2]
[420464714,1776108650598,-151.0,0.00014119,2]
[420464715,1776108650616,-282.023686,0.00014133,7]
[420464716,1776108650634,-160.0,0.00014157,7]
[420464717,1776108650644,-1033.369197,0.00014157,7]
[420464718,1776108650655,-1906.738394,0.00014157,7]
[420464719,1776108650668,-605.66,0.00014161,2]
[420464720,1776108650685,-500.0,0.00014174,2]
[420464721,1776108650708,-151.0,0.00014174,2]
[420464722,1776108650722,-2246.49017793,0.00014199,2]
[420464723,1776108650736,-9783.24786407,0.00014199,2]
[420464724,1776108650751,-160.0,0.0001421,2]
[420464725,1776108650762,-405.639685,0.0001421,2]
[420464726,1776108650777,-651.279371,0.0001421,2]
[420464727,1776108651359,-500.0,0.00014219,2]
[420464728,1776108651374,-500.0,0.00014221,2]
[420464729,1776108651384,-1000.0,0.00014221,2]
[420464730,1776108651398,-500.0,0.00014229,2]
[420464731,1776108651418,-151.0,0.00014229,2]
[420464732,1776108651436,-178.873755,0.0001423,2]
[420464733,1776108651451,-178.873755,0.0001423,2]
[420464734,1776108651473,-178.873755,0.0001423,2]
[420464735,1776108651483,-178.873755,0.0001423,2]
[420464736,1776108651507,-160.0,0.0001423,7]
[420464737,1776108651519,-673.381204,0.0001423,7]
[420464738,1776108651533,-1186.762409,0.0001423,7]
[420464739,1776108651555,-160.000003,0.0001423,7]
[420464740,1776108651566,-281.709249,0.0001423,7]
[420464741,1776108651579,-500.0,0.00014234,2]
[420464742,1776108651595,-166.66,0.00014247,2]
[420464743,1776108651607,-218.89620931,0.00014263,2]
[420464744,1776108651625,-500.0,0.00014284,2]
[420464745,1776108651637,-151.0,0.00014284,2]
[420464746,1776108651650,-161.60379702,0.0001431,2]
[420464747,1776108651670,-525.09,0.00014311,2]
[420464748,1776108651682,-666.0,0.00014311,2]
[420464749,1776108651695,-31285.88673614,0.00014312,2]
[420464750,1776108652534,-421.17964074,0.00014312,2]
[420464751,1776108652575,-409.3332599,0.00014312,2]
[420464752,1776108652619,-10021.00000343,0.00014312,2]
[420464753,1776108652631,-5110.37493883,0.00014312,2]
[420464754,1776108652648,-5460.00000146,0.00014312,2]
[420464755,1776108652666,-1685.999998,0.00014312,2]
[420464756,1776108652678,-10195.92,0.00014312,2]
[420464757,1776108670695,150.0,0.00016454,30]
[420464765,1776108741638,3060.50120965,0.00013256,2]
[420464766,1776108741669,10000.01,0.00013256,2]
[420464767,1776108741697,10000.01,0.00013256,2]
[420464768,1776108741724,10000.01,0.00013256,2]
[420464769,1776108741752,10000.01,0.00013256,2]
[420464770,1776108741774,10000.01,0.00013256,2]
[420464771,1776108741805,10000.01,0.00013256,2]
[420464772,1776108741834,10000.01,0.00013256,2]
[420464773,1776108741863,10000.01,0.00013256,2]
[420464774,1776108741889,10000.01,0.00013256,2]
[420464775,1776108832820,150.0,9.857e-05,30]
[420464776,1776108833270,150.0,0.00010913,30]
[420464777,1776108833594,150.0,0.0001197,30]
[420464778,1776108834077,150.0,0.00013026,30]
[420464779,1776108834567,162.43,0.00014082,30]
[420464780,1776108835135,194.91,0.00015138,30]
[420464781,1776108835499,227.4,0.00016194,30]
[420464782,1776108910482,150.0,0.00015845,30]
[420464783,1776108988726,150.0,0.00015224,30]
[420464787,1776109072379,150.0,0.00014676,30]
[420464788,1776109072878,150.0,0.00016249,30]
[420464789,1776109074154,-1852.42,0.00013006,2]
[420464790,1776109074210,-195.0,0.00013065,2]
[420464791,1776109074268,-2497.2152116,0.00013065,2]
[420464792,1776109074312,-300.0,0.00013065,2]
[420464793,1776109076785,-1500.0,0.00013125,2]
[420464794,1776109076860,-195.0,0.00013231,2]
[420464795,1776109076890,-3209.06879035,0.00013256,2]
[420464796,1776109088886,-4468.01,0.000116,5]
[420464797,1776109089017,-1063.99,0.000116,5]
[420464798,1776109091917,-269.3382515,0.00013285,2]
[420464799,1776109215392,-4468.01,0.000115,5]
[420464800,1776109215458,-234.31613837,0.000115,5]
[420464801,1776109215642,-829.67386163,0.000115,5]
[420464802,1776109215696,-1332.45,0.00012907,2]
[420464803,1776109215775,-250.0,0.00013,2]
[420464804,1776109215882,-1200.0,0.00013368,2]
[420464805,1776109216037,-2775.76227674,0.00013369,2]
[420464806,1776109223362,-426.71028496,0.00013369,2]
[420464807,1776109223395,-9146.58943008,0.00013369,2]
[420464808,1776109227603,-1000.0,0.00013385,2]
[420464809,1776109303168,150.0,0.00013536,30]
[420464810,1776109304497,150.0,0.00014987,30]
[420464811,1776109304836,150.0,0.00016437,30]
[420464812,1776109377615,150.0,0.00015454,30]
[420464813,1776109451919,150.0,0.00014379,30]
[420464814,1776109452327,150.0,0.0001592,30]
[420464816,1776109598559,150.0,0.0001217,30]
[420464817,1776109676392,150.0,8.432e-05,30]
[420464818,1776109676825,150.0,9.336e-05,30]
[420464819,1776109677120,150.0,0.00010239,30]
[420464820,1776109677636,150.0,0.00011143,30]
[420464821,1776109679183,150.0,0.00012046,30]
[420464822,1776109679351,150.0,0.00012949,30]
[420464823,1776109679466,159.26,0.00013853,30]
[420464824,1776109679550,182.01,0.00014756,30]
[420464825,1776109679604,204.76,0.0001566,30]
[420464826,1776109758259,150.0,0.0001134,30]
[420464827,1776109758591,150.0,0.00012556,30]
[420464837,1776109831481,-150.0,0.00010752,2]
[420464838,1776109831493,-179.55883432,0.00011,2]
[420464839,1776109831521,-24145.0,0.00011,2]
[420464840,1776109831534,-1200.0,0.00011098,2]
[420464841,1776109831554,-300.0,0.00011099,2]
[420464842,1776109831584,-5532.0,0.000112,3]
[420464843,1776109831597,-5532.0,0.000114,5]
[420464844,1776109831606,-150.0,0.00011612,2]
[420464845,1776109831633,-179.55883432,0.0001172,2]
[420464846,1776109831643,-150.0,0.000118,2]
[420464847,1776109831662,-150.0,0.00011826,2]
[420464848,1776109831685,-216.03524144,0.00011827,2]
[420464849,1776109831700,-250.0,0.00011827,2]
[420464850,1776109831733,-250.0,0.00011827,2]
[420464851,1776109831755,-5000.0,0.00011827,2]
[420464852,1776109831811,-485.59628488,0.00011827,2]
[420464853,1776109831823,-195.0,0.00011827,2]
[420464854,1776109831849,-250.0,0.00011827,2]
[420464855,1776109831858,-420.0,0.00012195,2]
[420464856,1776109831874,-1680.0,0.00012208,2]
[420464857,1776109831885,-590.0,0.00012356,2]
[420464858,1776109831894,-179.55883432,0.00012439,2]
[420464859,1776109831906,-1600.0,0.0001256,2]
[420464860,1776109831918,-500.0,0.0001263,2]
[420464861,1776109831929,-150.0,0.00012773,2]
[420464862,1776109831939,-150.0,0.00012773,2]
[420464863,1776109831952,-150.0,0.00012773,2]
[420464864,1776109831966,-150.0,0.00012773,2]
[420464865,1776109831979,-150.0,0.00012773,2]
[420464866,1776109831990,-150.0,0.00012773,2]
[420464867,1776109832007,-150.0,0.00012773,2]
[420464868,1776109832024,-150.23051104,0.00012773,2]
[420464869,1776109832040,-150.0,0.00012773,2]
[420464870,1776109832056,-150.32300286,0.00012773,2]
[420464871,1776109832089,-150.0,0.00012773,2]
[420464872,1776109832111,-150.0,0.00012773,2]
[420464873,1776109832147,-500.0,0.00012804,2]
[420464874,1776109832176,-9999.99,0.00012804,2]
[420464875,1776109832194,-999.99,0.00012804,2]
[420464876,1776109832228,-7440.92,0.00012804,2]
[420464877,1776109832282,-4498.36,0.00012814,2]
[420464878,1776109832356,-299.99,0.00012814,2]
[420464879,1776109832371,-417.0,0.00012877,2]
[420464880,1776109832435,-255.0,0.00012902,2]
[420464881,1776109832531,-189.6809,0.00013,2]
[420464882,1776109832555,-152.0,0.00013118,2]
[420464883,1776109832573,-962.4565,0.0001337,2]
[420464884,1776109832590,-238.80492651,0.00013385,2]
[420464885,1776109832603,-276.18304747,0.00013385,2]
[420464886,1776109832614,-587.0,0.000134,2]
[420464887,1776109832628,-166.67,0.00013403,2]
[420464888,1776109832637,-250.0,0.00013409,2]
[420464889,1776109832647,-3240.0,0.00013425,2]
[420464890,1776109832657,-2351.0,0.00013429,2]
[420464891,1776109832671,-150.0,0.00013482,2]
[420464892,1776109832680,-506.0,0.000135,2]
[420464893,1776109832690,-506.0,0.000135,2]
[420464894,1776109832700,-1500.0,0.000135,4]
[420464895,1776109832710,-500.0,0.00013587,2]
[420464896,1776109832719,-3100.0,0.000136,4]
[420464897,1776109832729,-151.0,0.00013692,2]
[420464898,1776109832738,-500.0,0.00013692,2]
[420464899,1776109832748,-151.0,0.00013692,2]
[420464900,1776109832760,-500.0,0.00013692,2]
[420464901,1776109832770,-151.0,0.00013692,2]
[420464902,1776109832779,-500.0,0.00013692,2]
[420464903,1776109832790,-151.0,0.00013692,2]
[420464905,1776109832800,-500.0,0.00013692,2]
[420464906,1776109832810,-151.0,0.00013692,2]
[420464907,1776109832819,-200.0,0.00013692,2]
[420464909,1776109832828,-500.0,0.00013692,2]
[420464911,1776109832838,-151.0,0.00013692,2]
[420464913,1776109832847,-500.0,0.00013692,2]
[420464915,1776109832857,-151.0,0.00013692,2]
[420464917,1776109832866,-500.0,0.00013692,2]
[420464919,1776109832876,-151.0,0.00013692,2]
[420464921,1776109832885,-500.0,0.00013692,2]
[420464923,1776109832895,-151.0,0.00013692,2]
[420464924,1776109832904,-500.0,0.00013692,2]
[420464926,1776109832913,-151.0,0.00013692,2]
[420464928,1776109832922,-500.0,0.00013692,2]
[420464930,1776109832931,-151.0,0.00013692,2]
[420464932,1776109832940,-500.0,0.00013692,2]
[420464934,1776109832950,-500.0,0.00013692,2]
[420464935,1776109832960,-500.0,0.00013692,2]
[420464936,1776109832969,-500.0,0.00013692,2]
[420464937,1776109832979,-151.0,0.00013692,2]
[420464938,1776109832990,-926.05301973,0.00013692,2]
[420464939,1776109832999,-4600.0,0.000137,5]
[420464940,1776109833008,-500.0,0.00013779,2]
[420464941,1776109833018,-500.0,0.00013779,2]
[420464942,1776109833031,-500.0,0.00013779,2]
[420464943,1776109833040,-500.0,0.00013779,2]
[420464944,1776109833049,-500.0,0.00013779,2]
[420464945,1776109833059,-500.0,0.00013779,2]
[420464946,1776109833075,-500.0,0.00013779,2]
[420464947,1776109833084,-500.0,0.00013779,2]
[420464948,1776109833094,-500.0,0.00013779,2]
[420464949,1776109833103,-251.90382347,0.00013779,2]
[420464950,1776109833118,-500.0,0.00013779,2]
[420464952,1776109833128,-500.0,0.00013779,2]
[420464954,1776109833137,-500.0,0.00013779,2]
[420464956,1776109833146,-883.77545539,0.00013779,2]
[420464958,1776109833156,-290.76892405,0.00013779,2]
[420464960,1776109833167,-883.77545539,0.00013779,2]
[420464962,1776109833176,-500.0,0.00013779,2]
[420464964,1776109833186,-348.14233754,0.00013779,2]
[420464966,1776109833195,-517.81304595,0.00013779,2]
[420464968,1776109833208,-500.0,0.00013779,2]
[420464970,1776109833218,-585.79108621,0.00013779,2]
[420464972,1776109833228,-883.77545539,0.00013779,2]
[420464973,1776109833237,-500.0,0.00013779,2]
[420464974,1776109833249,-500.0,0.00013779,2]
[420464975,1776109833261,-347.87474988,0.00013779,2]
[420464976,1776109833272,-500.0,0.00013779,2]
[420464977,1776109833282,-883.77545539,0.00013779,2]
[420464978,1776109833293,-257.18257165,0.00013779,2]
[420464979,1776109833305,-883.77545539,0.00013779,2]
[420464980,1776109833318,-883.77545539,0.00013779,2]
[420464981,1776109833328,-883.77545539,0.00013779,2]
[420464982,1776109833343,-883.77545539,0.00013779,2]
[420464983,1776109833357,-883.77545539,0.00013779,2]
[420464984,1776109833367,-883.77545539,0.00013779,2]
[420464985,1776109833384,-883.77545539,0.00013779,2]
[420464986,1776109833401,-883.77545539,0.00013779,2]
[420464987,1776109833410,-883.77545539,0.00013779,2]
[420464988,1776109833421,-883.77545539,0.00013779,2]
[420464989,1776109833437,-883.77545539,0.00013779,2]
[420464990,1776109833454,-883.77545539,0.00013779,2]
[420464991,1776109833463,-883.77545539,0.00013779,2]
[420464992,1776109833482,-883.77545539,0.00013779,2]
[420464993,1776109833499,-883.77545539,0.00013779,2]
[420464994,1776109833519,-883.77545539,0.00013779,2]
[420464995,1776109833536,-883.77545539,0.00013779,2]
[420464996,1776109833545,-883.77545539,0.00013779,2]
[420464997,1776109833564,-883.77545539,0.00013779,2]
[420464998,1776109833574,-883.77545539,0.00013779,2]
[420464999,1776109833583,-883.77545539,0.00013779,2]
[420465000,1776109833597,-883.77545539,0.00013779,2]
[420465001,1776109833609,-883.77545539,0.00013779,2]
[420465002,1776109833620,-883.77545539,0.00013779,2]
[420465003,1776109833629,-882.39455623,0.00013779,2]
[420465004,1776109833644,-882.39455623,0.00013779,2]
[420465005,1776109833655,-882.39455623,0.00013779,2]
[420465006,1776109833664,-882.39455623,0.00013779,2]
[420465007,1776109833679,-882.39455623,0.00013779,2]
[420465008,1776109833688,-882.39455623,0.00013779,2]
[420465009,1776109833705,-882.39455623,0.00013779,2]
[420465010,1776109833716,-882.39455623,0.00013779,2]
[420465011,1776109833729,-882.39455623,0.00013779,2]
[420465012,1776109833746,-882.39455623,0.00013779,2]
[420465013,1776109833760,-882.39455623,0.00013779,2]
[420465014,1776109833775,-882.39455623,0.00013779,2]
[420465015,1776109833798,-882.39455623,0.00013779,2]
[420465016,1776109833829,-882.39455623,0.00013779,2]
[420465017,1776109833841,-882.39455623,0.00013779,2]
[420465018,1776109833852,-882.39455623,0.00013779,2]
[420465019,1776109833885,-882.39455623,0.00013779,2]
[420465020,1776109833900,-882.39455623,0.00013779,2]
[420465021,1776109833938,-882.39455623,0.00013779,2]
[420465022,1776109833959,-882.39455623,0.00013779,2]
[420465023,1776109834004,-882.39455623,0.00013779,2]
[420465024,1776109834076,-882.39455623,0.00013779,2]
[420465025,1776109834182,-882.39455623,0.00013779,2]
[420465026,1776109834264,-861.92300253,0.00013779,2]
[420465027,1776109834298,-861.92300253,0.00013779,2]
[420465028,1776109834319,-861.92300253,0.00013779,2]
[420465029,1776109834337,-861.92300253,0.00013779,2]
[420465030,1776109834350,-861.92300253,0.00013779,2]
[420465031,1776109834374,-861.92300253,0.00013779,2]
[420465032,1776109834390,-861.92300253,0.00013779,2]
[420465033,1776109834405,-861.92300253,0.00013779,2]
[420465034,1776109834434,-861.92300253,0.00013779,2]
[420465035,1776109834443,-861.92300253,0.00013779,2]
[420465036,1776109834453,-861.92300253,0.00013779,2]
[420465037,1776109834462,-861.92300253,0.00013779,2]
[420465038,1776109834473,-861.92300253,0.00013779,2]
[420465039,1776109834484,-861.92300253,0.00013779,2]
[420465040,1776109834494,-861.92300253,0.00013779,2]
[420465041,1776109834503,-861.92300253,0.00013779,2]
[420465042,1776109834513,-861.92300253,0.00013779,2]
[420465043,1776109834524,-861.92300253,0.00013779,2]
[420465044,1776109834534,-861.92300253,0.00013779,2]
[420465045,1776109834543,-861.92300253,0.00013779,2]
[420465046,1776109834552,-861.92300253,0.00013779,2]
[420465047,1776109834563,-861.92300256,0.00013779,2]
[420465048,1776109834573,-861.92300256,0.00013779,2]
[420465049,1776109834582,-861.92300256,0.00013779,2]
[420465050,1776109834591,-861.92300254,0.00013779,2]
[420465051,1776109834602,-158.7947435,0.0001378,2]
[420465052,1776109834612,-57592.3962339,0.0001378,2]
[420465053,1776109834621,-52355.89139952,0.0001378,2]
[420465054,1776109835657,-16548.62919346,0.0001378,2]
[420465055,1776109835669,-17954.88661197,0.0001378,2]
[420465056,1776109835690,-65903.46519755,0.0001378,2]
[420465057,1776109835703,-1000.0,0.00013795,2]
[420465058,1776109835712,-1953.0291071,0.000138,5]
[420465059,1776109835738,-1263.98453803,0.000138,5]
[420465060,1776109835752,-596.61311656,0.000138,5]
[420465061,1776109835763,-2386.37323831,0.000138,5]
[420465062,1776109835796,-1463.6109225,0.0001381,2]
[420465063,1776109835805,-500.0,0.00013895,2]
[420465064,1776109835814,-192.58434386,0.00013895,2]
[420465065,1776109835835,-500.0,0.00013895,2]
[420465066,1776109835844,-500.0,0.00013895,2]
[420465067,1776109835855,-500.0,0.00013895,2]
[420465068,1776109835872,-500.0,0.00013895,2]
[420465069,1776109835888,-451.00015945,0.00013895,2]
[420465070,1776109835897,-769.36312026,0.00013895,2]
[420465071,1776109835909,-277.06639314,0.00013895,2]
[420465072,1776109835918,-500.0,0.00013895,2]
[420465073,1776109835936,-500.0,0.00013895,2]
[420465074,1776109835945,-500.0,0.00013895,2]
[420465075,1776109835964,-500.0,0.00013895,2]
[420465076,1776109835978,-500.0,0.00013895,2]
[420465077,1776109835987,-454.04008591,0.00013895,2]
[420465078,1776109836004,-7700.0,0.000139,5]
[420465079,1776109836016,-578.20924308,0.00013904,2]
[420465080,1776109836026,-721.12765535,0.00013904,2]
[420465081,1776109836050,-8260.1307224,0.00013904,2]
[420465082,1776109836065,-200.0,0.00013904,2]
[420465083,1776109836074,-500.0,0.00013904,2]
[420465084,1776109836090,-1428.38747117,0.00013904,2]
[420465085,1776109836103,-743.50770149,0.00013904,2]
[420465086,1776109836112,-312.41206436,0.00013904,2]
[420465087,1776109836122,-500.0,0.00013904,2]
[420465088,1776109836131,-500.0,0.00013904,2]
[420465089,1776109836147,-500.0,0.00013904,2]
[420465090,1776109836156,-500.0,0.00013904,2]
[420465091,1776109836165,-500.0,0.00013904,2]
[420465092,1776109836175,-290.8430727,0.00013904,2]
[420465093,1776109836195,-209.1569273,0.00013904,2]
[420465094,1776109836204,-151.0,0.00013904,2]
[420465095,1776109836214,-500.0,0.00013904,2]
[420465096,1776109836229,-500.0,0.00013904,2]
[420465097,1776109836240,-500.0,0.00013904,2]
[420465098,1776109836249,-209.40437684,0.00013904,2]
[420465099,1776109836260,-500.0,0.00013904,2]
[420465100,1776109836282,-500.0,0.00013904,2]
[420465101,1776109836292,-313.86766403,0.00013904,2]
[420465102,1776109836309,-1254.09285305,0.00013904,2]
[420465103,1776109836326,-8045.54526625,0.00013904,2]
[420465104,1776109836337,-386.49421667,0.00013904,2]
[420465105,1776109836348,-1032.2381753,0.00013904,2]
[420465106,1776109836357,-174.61919141,0.00013904,2]
[420465107,1776109836368,-1153.21601262,0.00013904,2]
[420465108,1776109836380,-420.0,0.00013904,2]
[420465109,1776109836392,-8.48088418,0.00013904,2]
[420465110,1776109836401,-693.3919763,0.00013904,2]
[420465111,1776109836410,-235.75327194,0.00013904,2]
[420465112,1776109836420,-274.24672807,0.00013904,2]
[420465113,1776109836429,-290.26104003,0.00013904,2]
[420465114,1776109836440,-160.0,0.00013928,2]
[420465115,1776109836450,-286.20800494,0.00013928,2]
[420465116,1776109836472,-109.23285106,0.00013928,2]
[420465117,1776109836482,-630.881712,0.00013928,2]
[420465118,1776109836491,-160.0,0.00013928,7]
[420465119,1776109836500,-721.394462,0.00013928,7]
[420465120,1776109836509,-1282.788924,0.00013928,7]
[420465121,1776109836519,-169.910563,0.00013928,2]
[420465122,1776109836530,-160.0,0.00013928,7]
[420465123,1776109836539,-1258.569888,0.00013928,7]
[420465124,1776109836548,-2357.139776,0.00013928,7]
[420465125,1776109836558,-228.854768,0.00013928,7]
[420465126,1776109836567,-189.87211,0.00013928,2]
[420465127,1776109836577,-160.000001,0.00013928,7]
[420465128,1776109836587,-177.53582,0.00013928,7]
[420465129,1776109836596,-2500.0,0.00013933,2]
[420465130,1776109836606,-1190.97221722,0.00013939,2]
[420465131,1776109836616,-500.0,0.00013959,2]
[420465132,1776109836625,-151.0,0.00013959,2]
[420465133,1776109836635,-500.0,0.00013972,2]
[420465134,1776109836644,-500.0,0.00013981,2]
[420465135,1776109836653,-3927.2917,0.00013983,2]
[420465136,1776109836664,-5440.89996692,0.0001399,2]
[420465137,1776109836673,-500.0,0.00013999,2]
[420465138,1776109836682,-500.0,0.00013999,2]
[420465139,1776109836691,-500.0,0.00014014,2]
[420465140,1776109836700,-151.0,0.00014014,2]
[420465141,1776109836710,-1311.13624929,0.00014014,2]
[420465142,1776109836719,-1206.56979088,0.00014022,2]